bitfinex/quotes_ETHUSD_20250626
["timestamp","ask_amount","ask_price","bid_price","bid_amount"]
[1750945865587,0.2056,2431.6,2431.2,4.31871468]
[1750945865788,0.2056,2431.6,2431.2,2.1116]
[1750945865980,0.12845334,2431.5,2431.2,6.22474836]
[1750945866183,0.2056,2431.6,2431.2,6.22474836]
[1750945866365,0.2056,2431.6,2431.2,3.22823208]
[1750945866566,0.2056,2431.5,2431.2,1.906]
[1750945867578,0.2056,2431.5,2431.0,0.2056]
[1750945867978,4.7905664,2431.9,2430.9,11.906]
[1750945868196,2.6474,2432.0,2430.9,11.906]
[1750945868197,0.2056,2431.3,2430.9,1.906]
[1750945868590,0.7414,2431.8,2430.9,1.906]
[1750945868890,0.2056,2431.1,2430.9,1.906]
[1750945869264,0.1914,2431.4,2430.6,11.11413207]
[1750945869461,0.2056,2431.0,2430.6,7.2056]
[1750945869861,0.2056,2431.0,2430.7,4.11395617]
[1750945870061,0.2056,2431.0,2430.8,4.11372057]
[1750945870384,0.2056,2431.0,2430.8,1.54333618]
[1750945870578,0.2056,2431.0,2430.8,5.65718122]
[1750945870807,0.2056,2431.0,2430.8,5.65710238]
[1750945870975,0.2056,2431.0,2430.8,1.54333618]
[1750945871178,0.1914,2431.4,2430.9,14.11370274]
[1750945871492,0.2056,2431.4,2431.0,4.11344001]
[1750945871686,0.2056,2431.4,2430.9,10.2056]
[1750945871869,0.55,2431.4,2430.5,4.94082003]
[1750945872068,0.55,2431.4,2430.3,4.53955615]
[1750945872069,0.2056,2430.8,2430.3,4.53955615]
[1750945872294,0.397,2430.8,2430.3,2.2604592]
[1750945872468,0.397,2430.8,2430.3,0.4249265]
[1750945872884,0.397,2430.8,2430.3,4.5395232]
[1750945873170,0.397,2430.8,2430.5,4.11429715]
[1750945873368,0.397,2430.8,2430.3,0.4249265]
[1750945873563,0.2056,2430.6,2430.3,4.33396646]
[1750945874170,0.2056,2430.6,2430.5,4.11437975]
[1750945874364,0.2056,2430.8,2430.6,4.11418801]
[1750945874571,0.2056,2431.1,2430.8,4.11377773]
[1750945874864,0.2056,2431.1,2430.8,4.11384367]
[1750945875066,0.2056,2431.1,2430.7,4.11392743]
[1750945875266,0.2056,2431.1,2430.9,4.11359624]
[1750945875465,0.2056,2431.1,2430.6,8.909]
[1750945875667,0.2056,2431.1,2430.6,7.00807974]
[1750945875867,0.2056,2430.9,2430.6,8.908]
[1750945876068,0.2056,2430.9,2430.6,13.02219565]
[1750945876300,0.2056,2430.9,2430.6,4.11419565]
[1750945876478,0.2056,2430.9,2430.5,13.97997098]
[1750945876683,0.2056,2430.9,2430.5,5.07497098]
[1750945876883,0.2056,2430.9,2430.6,4.1141878]
[1750945877080,0.2056,2430.9,2430.5,6.98188587]
[1750945877307,0.2056,2430.9,2430.6,4.11412057]
[1750945877499,0.2056,2430.9,2430.6,4.11418614]
[1750945877799,0.2056,2430.9,2430.5,2.1126]
[1750945878005,0.55,2431.2,2430.3,4.33395549]
[1750945878300,0.397,2430.8,2430.5,4.11435536]
[1750945878507,0.397,2430.8,2430.4,1.907]
[1750945878869,0.397,2430.8,2430.4,6.02154201]
[1750945879071,0.397,2430.8,2430.4,1.907]
[1750945879798,0.1914,2430.8,2430.4,1.907]
[1750945879973,0.2056,2430.6,2430.4,1.907]
[1750945881205,0.2056,2430.6,2430.3,0.2193265]
[1750945881508,0.1914,2430.8,2430.3,0.2193265]
[1750945881509,0.7556,2430.4,2430.3,0.2193265]
[1750945881802,0.947,2430.4,2430.3,0.2193265]
[1750945882301,13.35275957,2430.4,2430.3,0.2193265]
[1750945882503,1.24753996,2430.4,2430.3,0.2193265]
[1750945882702,0.7414,2430.4,2430.3,0.2193265]
[1750945882889,0.55,2431.3,2430.3,0.2193265]
[1750945883092,0.1914,2431.2,2430.3,2.1263265]
[1750945883290,0.1914,2431.2,2430.7,4.11391283]
[1750945883494,0.1914,2431.2,2430.9,4.1136069]
[1750945883806,0.1914,2431.2,2431.0,4.11343966]
[1750945883999,0.1914,2431.8,2431.1,4.1132576]
[1750945884183,0.55,2431.7,2431.1,4.1132576]
[1750945884381,0.1914,2431.8,2431.0,4.11344583]
[1750945884705,0.1914,2431.8,2430.8,1.907]
[1750945885002,0.55,2431.5,2430.8,6.02078912]
[1750945885201,0.55,2431.5,2431.1,4.11326974]
[1750945885384,0.1914,2431.6,2431.2,4.11302835]
[1750945885581,0.1914,2431.6,2430.9,4.11357632]
[1750945885903,0.55,2431.5,2430.8,6.02079124]
[1750945886201,0.55,2431.5,2430.8,6.02081766]
[1750945886592,0.55,2431.5,2430.8,1.907]
[1750945886906,0.55,2431.3,2430.8,6.0207827]
[1750945887297,0.55,2431.3,2430.6,6.0211638]
[1750945887494,0.55,2431.3,2430.7,4.11402792]
[1750945887696,0.55,2431.3,2430.9,4.11357438]
[1750945888087,0.1914,2431.4,2431.1,4.11332581]
[1750945888303,0.1914,2431.4,2431.0,4.11344485]
[1750945888498,0.1914,2431.4,2431.1,4.11334933]
[1750945888778,0.1914,2431.4,2431.0,4.11345739]
[1750945889009,0.1914,2431.4,2430.9,4.11364439]
[1750945889010,0.1914,2431.4,2430.6,1.907]
[1750945889209,0.1914,2431.4,2431.2,4.11317014]
[1750945889401,0.1914,2431.4,2430.8,4.86390428]
[1750945889597,0.1914,2431.4,2431.1,4.11328551]
[1750945889798,0.1914,2431.4,2431.0,4.11344636]
[1750945890003,0.1914,2431.4,2431.1,4.11328495]
[1750945890388,0.1914,2431.6,2430.9,1.907]
[1750945890588,0.55,2431.5,2430.9,2.99248]
[1750945890794,0.55,2431.5,2430.9,6.02061736]
[1750945891009,0.55,2431.5,2430.9,4.11361736]
[1750945891182,0.55,2431.5,2431.0,1.907]
[1750945891711,0.55,2431.3,2430.6,6.02109785]
[1750945892286,0.2056,2430.8,2430.7,4.11404122]
[1750945892487,0.2056,2430.8,2430.4,4.32011825]
[1750945892688,0.2056,2430.7,2430.5,4.11436579]
[1750945892890,0.2056,2430.7,2430.4,7.96227378]
[1750945893201,0.2056,2430.7,2430.3,4.3338993]
[1750945893202,0.2056,2430.5,2430.3,0.2193265]
[1750945893408,0.55,2430.7,2430.3,0.2193265]
[1750945894388,0.2056,2430.5,2430.3,4.33394249]
[1750945894608,0.1914,2430.9,2430.7,4.11397808]
[1750945894813,0.2056,2430.7,2430.6,4.11408539]
[1750945895119,0.2056,2430.7,2430.6,6.8684906]
[1750945895689,0.2056,2430.7,2430.4,4.11450138]
[1750945896018,0.2056,2430.7,2430.5,4.11428313]
[1750945896229,0.2056,2430.7,2430.3,2.1303265]
[1750945896420,0.1914,2430.7,2430.3,0.2193265]
[1750945896597,0.2056,2430.5,2430.3,0.2193265]
[1750945896800,0.1914,2430.7,2430.3,0.2193265]
[1750945896801,0.55,2430.4,2430.3,0.2193265]
[1750945897001,0.7414,2430.4,2430.3,0.2193265]
[1750945897794,1.81554,2430.4,2430.3,0.2193265]
[1750945898015,0.7414,2430.4,2430.3,0.2193265]
[1750945899509,14.85594904,2430.4,2430.3,0.2193265]
[1750945899918,21.87794904,2430.4,2430.3,0.2193265]
[1750945900131,17.7634,2430.4,2430.3,0.2193265]
[1750945900422,10.7414,2430.4,2430.3,0.2193265]
[1750945900600,17.23492488,2430.4,2430.3,0.2193265]
[1750945901029,17.3634033,2430.4,2430.3,0.2193265]
[1750945901328,17.3634033,2430.4,2428.8,7.029]
[1750945901329,4.874,2429.7,2427.7,4.11912148]
[1750945901529,10.0,2429.1,2427.7,4.11909295]
[1750945901695,2.462,2429.0,2427.6,4.11918794]
[1750945901898,0.55,2428.6,2427.4,4.11958746]
[1750945902205,0.55,2428.4,2427.3,0.7671]
[1750945902413,0.55,2428.2,2427.0,0.7703]
[1750945902624,1.46681221,2428.1,2427.0,4.89050375]
[1750945902821,4.66827742,2428.2,2427.0,4.89050375]
[1750945903019,0.55,2428.3,2427.2,4.119914]
[1750945903231,10.55,2428.0,2426.6,0.8234]
[1750945903442,14.66861614,2428.0,2426.6,0.8234]
[1750945903661,21.82361614,2428.0,2426.6,0.8234]
[1750945903809,21.82361614,2428.0,2426.3,4.94487973]
[1750945903810,4.11939058,2427.6,2426.3,4.94487973]
[1750945904012,4.11906674,2427.8,2426.3,4.94487973]
[1750945904013,0.55,2427.3,2426.3,4.94487973]
[1750945904214,0.05,2427.2,2426.2,0.02900862]
[1750945904436,0.55,2427.1,2426.2,0.02900862]
[1750945905218,0.55,2426.9,2426.2,0.02900862]
[1750945905616,0.55,2427.0,2426.2,0.02900862]
[1750945905817,19.71716541,2427.2,2426.2,0.02900862]
[1750945905818,0.46701612,2426.9,2426.2,0.02900862]
[1750945906122,0.55,2427.0,2426.4,4.12122336]
[1750945906324,0.55,2427.0,2426.2,0.02900862]
[1750945906325,0.55,2427.1,2426.2,0.02900862]
[1750945906539,0.55,2426.8,2426.2,0.02900862]
[1750945906758,0.05,2425.8,2425.4,0.2193265]
[1750945906924,0.05,2425.6,2425.4,0.2193265]
[1750945907323,9.259,2426.3,2425.4,0.2193265]
[1750945907550,0.05,2425.9,2425.4,0.2193265]
[1750945907741,0.6,2426.5,2425.9,4.1221709]
[1750945907943,4.11957798,2427.5,2426.0,0.41221709]
[1750945908127,4.11990505,2427.3,2426.0,0.41221709]
[1750945908447,0.12860493,2427.2,2426.3,4.12140843]
[1750945908651,0.12860493,2427.1,2426.3,4.12146957]
[1750945908850,0.05,2426.9,2426.0,0.41221709]
[1750945909058,0.67860493,2426.8,2426.0,4.12201154]
[1750945909360,0.67860493,2426.8,2426.0,4.12185137]
[1750945909361,0.55,2426.8,2426.0,4.12185137]
[1750945909557,0.55,2426.8,2426.1,4.12181215]
[1750945909854,0.05,2426.9,2425.7,10.0]
[1750945910250,0.05,2426.9,2426.4,4.12124565]
[1750945910459,0.2056,2426.3,2425.9,0.2056]
[1750945910766,0.05,2427.2,2426.0,4.12189512]
[1750945910973,0.2056,2426.6,2426.5,4.12116216]
[1750945911743,0.2056,2426.6,2425.9,6.19602067]
[1750945911955,0.2056,2426.4,2426.0,4.12201154]
[1750945912157,0.55,2427.1,2425.9,2.074]
[1750945912344,0.2056,2426.3,2425.9,2.074]
[1750945912550,0.05,2427.2,2426.4,4.12133201]
[1750945912749,0.2056,2426.7,2426.6,4.12099233]
[1750945913136,0.05,2427.2,2426.1,10.0]
[1750945913342,0.05,2427.2,2426.5,4.12114117]
[1750945913539,0.05,2427.2,2426.6,4.12092473]
[1750945913746,0.05,2427.2,2426.2,0.2056]
[1750945914038,0.05,2427.2,2426.7,4.12067173]
[1750945914344,0.05,2427.2,2426.8,4.020598]
[1750945914550,0.2056,2426.7,2426.6,4.12092231]
[1750945914749,0.2056,2426.7,2426.3,4.0713354]
[1750945914966,0.2056,2426.4,2426.3,4.12150187]
[1750945915884,0.05,2427.2,2426.7,4.12071308]
[1750945916052,0.2056,2426.7,2426.5,4.12109857]
[1750945916241,0.05,2427.2,2426.5,4.12109857]
[1750945916578,0.2056,2426.6,2425.8,6.94933705]
[1750945916783,0.2056,2426.0,2425.8,4.87536654]
[1750945916963,0.05,2426.8,2426.2,4.12164127]
[1750945917148,0.05,2426.8,2425.9,4.12218145]
[1750945917149,0.2056,2426.2,2426.1,4.12175807]
[1750945917353,0.2056,2426.2,2425.8,6.00315295]
[1750945917543,0.2056,2426.2,2426.0,4.12192826]
[1750945917950,0.2056,2426.2,2426.1,4.12184163]
[1750945918171,0.2056,2426.2,2425.8,1.88086365]
[1750945918339,0.55,2426.7,2425.7,4.12239009]
[1750945918672,0.2056,2426.0,2425.7,4.12239009]
[1750945918967,14.17071703,2426.8,2425.5,4.12274191]
[1750945919144,14.17071703,2426.8,2425.4,0.2193265]
[1750945919145,0.2056,2425.8,2425.4,0.2193265]
[1750945919334,0.2056,2425.8,2425.7,4.12252133]
[1750945919538,0.55,2426.7,2426.0,4.12199064]
[1750945919738,2.124,2426.8,2426.0,4.12191561]
[1750945919938,0.2056,2426.1,2425.9,4.12210995]
[1750945920163,2.124,2426.8,2425.7,4.1224985]
[1750945920164,0.55,2426.7,2425.7,4.1224985]
[1750945920478,0.55,2426.7,2425.4,0.2193265]
[1750945920479,0.55,2425.9,2425.4,0.2193265]
[1750945920785,0.2056,2425.5,2425.4,4.34235775]
[1750945920937,0.05,2426.4,2425.5,0.2056]
[1750945921137,0.05,2426.4,2425.6,2.075]
[1750945921367,0.2056,2426.0,2425.6,6.1975957]
[1750945921560,0.2056,2426.0,2425.6,4.12269129]
[1750945921769,0.2056,2426.0,2425.6,6.19769129]
[1750945921970,0.2056,2426.0,2425.6,6.19760651]
[1750945922171,0.05,2426.4,2425.5,4.12286126]
[1750945922372,0.2056,2425.9,2425.5,0.92836115]
[1750945922551,0.05,2426.4,2425.8,4.12235138]
[1750945922751,0.2056,2425.9,2425.8,4.12218791]
[1750945923071,0.05,2425.8,2425.4,0.2193265]
[1750945923276,0.2056,2425.7,2425.4,0.2193265]
[1750945923473,0.55,2425.6,2425.4,0.2193265]
[1750945923644,0.05,2425.8,2425.4,0.2193265]
[1750945923846,0.55,2425.7,2425.4,0.2193265]
[1750945924073,0.12875096,2425.6,2425.4,0.2193265]
[1750945924240,0.12875096,2425.5,2425.4,0.2193265]
[1750945924778,0.67875096,2425.5,2425.4,0.2193265]
[1750945924955,3.23390412,2425.5,2425.4,0.2193265]
[1750945925152,3.23390412,2425.5,2424.0,4.12528647]
[1750945925153,0.05,2425.4,2424.0,4.12528647]
[1750945925380,0.05,2425.2,2424.3,0.8081]
[1750945925569,0.12875096,2425.1,2424.5,30.0]
[1750945925754,0.12875384,2425.0,2424.5,10.0]
[1750945925957,0.05,2425.8,2424.6,1.0]
[1750945926156,0.12874967,2425.7,2424.8,18.056446]
[1750945926347,0.12874967,2425.6,2424.7,0.7684]
[1750945926551,0.12874967,2425.5,2424.7,12.9474]
[1750945926746,0.12874967,2425.4,2424.8,4.12404116]
[1750945927046,0.12874967,2425.3,2425.0,4.12361341]
[1750945927345,0.12874967,2425.2,2425.1,4.12348065]
[1750945927577,0.12874967,2425.2,2425.1,17.06078065]
[1750945927744,0.95895763,2426.1,2425.1,0.7583]
[1750945927962,0.12873539,2426.0,2425.1,4.88173856]
[1750945928159,1.08766643,2425.9,2425.2,4.12336884]
[1750945928481,0.55,2426.2,2425.2,4.1232656]
[1750945928482,1.08766643,2425.8,2425.2,4.1232656]
[1750945928808,1.08766643,2425.7,2425.5,4.1227616]
[1750945928978,1.08801441,2425.6,2425.2,0.48815656]
[1750945929293,1.08801441,2425.5,2424.9,14.01177912]
[1750945929580,0.05,2425.7,2424.9,9.888]
[1750945929581,1.08801441,2425.4,2424.9,9.888]
[1750945929788,0.05,2425.7,2424.9,14.01188022]
[1750945929789,1.08801441,2425.3,2424.9,14.01188022]
[1750945930080,0.12873539,2425.2,2425.1,4.12354129]
[1750945930377,1.0894363,2425.2,2425.1,4.12354129]
[1750945930580,0.12873539,2425.2,2425.1,5.93706495]
[1750945930742,0.12873539,2425.2,2425.1,4.12354129]
[1750945930948,2.42746464,2425.9,2425.0,4.12364272]
[1750945931184,0.05,2426.1,2424.7,2.9365]
[1750945931185,0.05,2425.7,2424.7,2.9365]
[1750945931355,0.96069813,2425.6,2424.8,4.12388732]
[1750945931680,0.96069813,2425.5,2424.7,7.06070736]
[1750945931843,0.96069813,2425.4,2424.7,2.179]
[1750945932044,0.05,2425.2,2424.5,4.12443963]
[1750945932351,0.96069813,2425.1,2424.6,4.12437251]
[1750945932562,0.96069813,2425.0,2424.3,0.8148]
[1750945932764,0.96069813,2424.9,2424.8,4.12404505]
[1750945933455,0.96069813,2424.9,2424.8,4.94886934]
[1750945933873,0.2056,2425.2,2425.1,4.94274129]
[1750945934100,3.23661952,2425.9,2425.2,24.12333156]
[1750945934254,3.23661952,2425.9,2425.4,4.12291929]
[1750945934255,0.2056,2425.7,2425.4,4.12291929]
[1750945934450,0.2056,2425.7,2425.4,6.30191929]
[1750945934700,0.2056,2425.7,2425.1,1.0248]
[1750945934898,0.2056,2425.7,2425.2,9.658]
[1750945935059,0.2056,2425.7,2425.3,9.658]
[1750945935383,0.2056,2425.4,2425.3,2.179]
[1750945935603,0.2056,2425.4,2425.1,0.2056]
[1750945935753,0.05,2425.5,2425.0,4.12362242]
[1750945936092,0.2056,2425.1,2424.9,2.179]
[1750945936254,0.2056,2425.1,2424.7,4.12410743]
[1750945936459,0.2056,2424.9,2424.7,4.63543748]
[1750945936762,0.2056,2424.9,2424.7,0.51132074]
[1750945936975,0.2056,2424.9,2424.6,2.179]
[1750945937153,0.2056,2424.9,2424.6,6.3033584]
[1750945938105,0.2056,2424.9,2424.5,4.12454367]
[1750945938393,0.2056,2424.6,2424.3,14.01380036]
[1750945938687,0.2056,2424.6,2424.3,9.889]
[1750945938885,0.05,2424.6,2423.7,0.7966]
[1750945939086,0.05,2424.6,2424.1,4.12524235]
[1750945939087,0.2056,2424.2,2424.1,4.12524235]
[1750945939680,0.05,2425.0,2424.1,23.284039]
[1750945939891,3.23661952,2425.6,2424.8,0.7711]
[1750945940103,4.0457744,2425.8,2424.9,9.8646]
[1750945940104,0.2056,2425.5,2424.9,9.8646]
[1750945940281,0.05,2425.4,2424.3,10.4401]
[1750945940602,0.05,2425.4,2424.6,13.678983]
[1750945940771,3.23661952,2426.0,2424.9,0.778]
[1750945940969,3.23661952,2426.3,2425.3,0.778]
[1750945941270,0.12875928,2426.2,2425.3,0.778]
[1750945941468,0.12875928,2426.3,2425.7,4.12252133]
[1750945941707,3.23661952,2426.8,2426.1,2.60992]
[1750945941904,3.36534989,2426.7,2426.0,2.179]
[1750945942107,3.23661952,2426.7,2426.2,4.12154789]
[1750945942304,3.23661952,2426.7,2426.1,9.97896]
[1750945942305,0.12872244,2426.6,2426.1,9.97896]
[1750945942603,0.12872897,2426.6,2426.1,13.80480784]
[1750945942806,3.23661952,2426.7,2426.1,9.683]
[1750945943103,3.36535066,2426.6,2426.1,4.12173896]
[1750945943305,3.23661952,2426.6,2426.2,4.12159194]
[1750945943604,3.23661952,2426.5,2426.2,4.12156588]
[1750945943833,0.05,2427.0,2426.2,4.12156588]
[1750945943834,3.23661952,2426.4,2426.2,3.79535851]
[1750945944012,3.23661952,2426.3,2426.1,2.179]
[1750945944192,3.23661952,2426.4,2426.1,6.30074615]
[1750945944508,3.23661952,2426.5,2426.1,6.30077413]
[1750945944695,3.23661952,2426.8,2426.2,4.12165217]
[1750945944900,3.23661952,2426.8,2426.6,4.12099233]
[1750945945077,3.23661952,2426.9,2426.6,11.62197391]
[1750945945277,3.23661952,2426.8,2426.6,11.62197391]
[1750945945588,3.23661952,2426.7,2426.6,11.62197391]
[1750945945785,3.23661952,2426.8,2426.5,9.684]
[1750945945986,0.96607369,2426.7,2426.4,0.8285]
[1750945946180,0.96607369,2426.6,2426.4,4.12133032]
[1750945946383,0.96607369,2426.5,2426.4,4.53346504]
[1750945946577,0.96607369,2426.5,2426.4,40.01393304]
[1750945946779,0.13277369,2426.5,2426.4,40.01393304]
[1750945946979,0.12867796,2427.3,2426.8,4.12065271]
[1750945947224,3.23661952,2427.4,2427.2,4.11986203]
[1750945947389,3.23661952,2427.7,2427.3,4.11980389]
[1750945947582,1.22762942,2427.6,2427.1,4.11997521]
[1750945947794,0.12866747,2427.5,2427.2,4.11996736]
[1750945948135,3.23661952,2427.5,2426.9,0.7811]
[1750945948332,0.12867058,2427.4,2426.8,9.675]
[1750945948609,0.12868048,2427.3,2426.9,4.12036123]
[1750945948783,3.23661952,2427.3,2427.0,4.1203087]
[1750945948986,3.23661952,2427.3,2426.9,4.1204032]
[1750945949184,3.23661952,2427.3,2426.8,9.675]
[1750945949380,3.23661952,2427.3,2427.2,4.11997363]
[1750945949630,4.0457744,2427.7,2427.1,8.80760638]
[1750945949631,4.0457744,2427.7,2427.5,4.11942324]
[1750945949782,4.0457744,2427.7,2427.3,4.11978403]
[1750945949783,0.12866652,2427.6,2427.3,7.496]
[1750945949986,3.22616801,2427.4,2427.1,0.7811]
[1750945950182,3.22589774,2427.2,2427.1,0.7811]
[1750945950419,3.22589774,2427.2,2427.1,4.90124338]
[1750945950628,3.22589774,2427.5,2427.2,4.11994435]
[1750945950927,3.22589774,2427.5,2427.3,7.505]
[1750945951090,0.2056,2427.6,2427.3,7.505]
[1750945951511,0.7753,2428.0,2427.2,7.501]
[1750945951837,0.2056,2427.4,2427.2,7.501]
[1750945952130,0.2056,2427.7,2427.3,0.2056]
[1750945952529,0.2056,2427.7,2426.8,0.8011]
[1750945952702,0.2056,2427.6,2427.4,4.11946682]
[1750945952903,0.2056,2427.7,2427.4,4.11946682]
[1750945953101,0.2056,2427.7,2427.4,4.11962087]
[1750945953297,0.2056,2427.9,2427.5,4.11936413]
[1750945953509,0.7753,2428.0,2426.7,10.0]
[1750945953718,0.2056,2427.6,2427.3,4.11977969]
[1750945953931,0.2056,2427.6,2427.2,4.11990446]
[1750945954106,0.2056,2427.6,2427.3,4.11978349]
[1750945954303,0.2056,2427.6,2427.5,4.11946446]
[1750945954611,0.2056,2427.6,2426.9,9.676]
[1750945954612,0.2056,2427.7,2427.4,4.11963038]
[1750945954808,0.2056,2427.7,2427.3,4.11980389]
[1750945955010,0.2056,2427.9,2427.6,4.11914224]
[1750945955224,0.92185955,2428.2,2427.7,4.11908199]
[1750945955403,0.92185955,2428.2,2427.5,4.11933966]
[1750945955404,0.2056,2428.0,2427.6,0.2056]
[1750945955800,0.92185955,2428.2,2427.4,8.3107]
[1750945956121,0.2056,2427.8,2427.3,0.2056]
[1750945956427,0.2056,2427.5,2427.3,4.11979412]
[1750945956729,0.2056,2427.5,2427.2,4.11988482]
[1750945956927,0.2056,2427.5,2427.2,4.11991542]
[1750945957097,0.2056,2427.5,2427.4,4.11963417]
[1750945957525,0.7932,2428.2,2427.3,4.11972839]
[1750945957702,0.2056,2427.6,2427.3,4.11972839]
[1750945958421,0.7932,2428.2,2427.0,4.12031314]
[1750945958601,0.2056,2428.0,2427.7,4.11904403]
[1750945958793,0.2056,2428.0,2427.5,0.2056]
[1750945959198,0.7932,2428.2,2427.8,4.11882095]
[1750945959428,0.7932,2428.2,2427.5,7.08165282]
[1750945959429,0.2056,2428.1,2428.0,4.11849131]
[1750945959720,0.2056,2428.1,2427.8,4.11889854]
[1750945959937,0.2056,2428.1,2427.9,4.11877624]
[1750945960240,0.2056,2428.1,2427.8,4.11895543]
[1750945960423,0.2056,2428.1,2427.9,4.11871]
[1750945960730,0.8014,2428.5,2427.2,0.7508]
[1750945961034,0.8014,2428.5,2427.2,0.2056]
[1750945961035,0.2056,2427.8,2427.2,0.2056]
[1750945961196,0.2056,2427.5,2427.3,4.1198004]
[1750945961528,0.2056,2427.5,2427.2,4.32548451]
[1750945961730,0.2056,2427.5,2427.3,4.11978797]
[1750945961933,0.7844,2427.9,2427.5,4.11933643]
[1750945962229,0.2056,2427.7,2427.5,4.11933643]
[1750945962428,0.816,2428.2,2427.6,4.11929477]
[1750945962643,0.816,2428.2,2427.4,11.58757488]
[1750945962644,0.2056,2427.9,2427.5,4.3249811]
[1750945962847,0.2056,2427.9,2427.6,4.11920434]
[1750945963057,4.91062321,2429.1,2427.6,2.9904]
[1750945963267,0.2056,2428.2,2427.9,4.11869141]
[1750945963414,0.2056,2428.2,2427.7,4.32464506]
[1750945963611,0.7938,2428.4,2427.7,4.11912097]
[1750945963821,0.2056,2428.0,2427.6,0.7844]
[1750945964024,0.2056,2428.0,2427.7,4.11906516]
[1750945964753,0.2056,2428.0,2427.8,4.11892625]
[1750945964920,0.2056,2428.0,2427.7,4.1190326]
[1750945965240,0.2056,2428.0,2427.8,4.11894448]
[1750945965647,0.2056,2428.0,2427.7,4.11903695]
[1750945966015,0.2056,2428.0,2427.8,4.11894515]
[1750945966362,1.89162244,2429.0,2427.8,0.90224699]
[1750945966533,0.7539,2429.1,2427.7,4.11904028]
[1750945966716,0.76,2428.9,2427.8,13.77286341]
[1750945966920,0.55,2428.8,2427.9,4.11866466]
[1750945967337,0.55,2428.8,2427.8,13.77286341]
[1750945967546,0.55,2428.8,2427.9,4.11878578]
[1750945968155,0.55,2428.8,2427.8,4.1189024]
[1750945968362,10.48166541,2428.3,2427.2,0.7743]
[1750945968519,10.0,2428.2,2427.3,4.11980389]
[1750945968837,0.8145,2428.3,2427.3,4.11980389]
[1750945969041,0.8145,2428.3,2427.3,4.11974559]
[1750945969218,0.30205,2428.2,2427.4,4.11963417]
[1750945969419,0.30205,2428.2,2427.4,4.11959081]
[1750945969641,0.8145,2428.3,2427.4,4.11959081]
[1750945970027,0.8145,2428.3,2427.2,4.89417709]
[1750945970237,4.11822606,2428.3,2427.2,10.0]
[1750945970438,0.8145,2428.2,2427.2,4.11997363]
[1750945970658,0.8145,2428.2,2427.3,4.11979116]
[1750945970953,1.08145,2428.1,2427.3,4.11979116]
[1750945971144,1.08145,2428.1,2427.2,4.11991353]
[1750945971340,0.8145,2428.2,2427.2,4.11991353]
[1750945972254,0.8145,2428.2,2427.2,4.11990198]
[1750945972555,0.8145,2428.2,2427.3,4.11979886]
[1750945972959,0.8145,2428.2,2427.0,2.206]
[1750945973162,0.8145,2428.2,2427.3,4.11971134]
[1750945973526,0.8145,2428.2,2427.2,4.11990507]
[1750945973738,0.8145,2428.2,2427.3,4.11976889]
[1750945974057,2.3077463,2428.2,2427.4,0.8115]
[1750945974259,0.8145,2428.2,2427.3,0.8239674]
[1750945974425,0.8145,2428.2,2427.2,10.0]
[1750945974756,0.8145,2428.2,2427.2,4.11985576]
[1750945974933,0.8145,2428.2,2427.3,4.11976466]
[1750945975141,1.08145,2428.1,2427.2,4.11988974]
[1750945975327,0.7982,2428.0,2427.2,4.11988974]
[1750945975523,0.7982,2428.0,2427.1,4.12005185]
[1750945976059,0.8058,2427.8,2426.4,0.7567]
[1750945976259,0.8058,2427.4,2426.4,2.206]
[1750945976463,10.0,2427.3,2426.4,2.206]
[1750945976635,1.30118,2427.2,2426.4,2.206]
[1750945976826,0.8058,2427.4,2426.7,4.12072231]
[1750945977022,0.2056,2427.1,2426.7,4.12072231]
[1750945977228,0.8058,2427.4,2426.8,4.12055456]
[1750945977544,0.2056,2427.2,2426.8,0.2056]
[1750945977750,0.2056,2427.2,2426.8,4.32624622]
[1750945977950,0.2056,2427.2,2426.8,0.2056]
[1750945978667,0.8058,2427.4,2426.5,4.12113121]
[1750945978839,0.2056,2426.9,2426.5,4.12114924]
[1750945979467,0.2056,2426.9,2426.6,4.12096963]
[1750945979851,0.2056,2426.9,2426.5,4.12108082]
[1750945980163,0.2056,2426.9,2426.6,4.12093972]
[1750945980563,0.2056,2426.9,2426.7,4.12074201]
[1750945980751,0.8058,2427.4,2426.9,4.12037185]
[1750945980952,0.2056,2427.1,2426.7,4.90153182]
[1750945981160,0.8058,2427.4,2426.9,4.12041735]
[1750945981332,0.2056,2427.2,2426.9,4.12041735]
[1750945981538,0.7819,2428.4,2427.1,10.8248]
[1750945981781,0.2056,2428.3,2427.2,0.8248]
[1750945982082,0.7819,2428.4,2427.9,0.2056]
[1750945982238,0.2056,2428.0,2427.6,0.2056]
[1750945982439,0.2056,2427.9,2427.6,4.11920929]
[1750945982744,0.97400613,2428.6,2427.8,0.7671]
[1750945982944,20.70306315,2429.6,2428.0,4.11861614]
[1750945982945,0.2056,2428.7,2428.0,4.11861614]
[1750945983171,1.0106,2428.8,2428.5,4.11759944]
[1750945983475,1.0106,2428.8,2428.4,0.2056]
[1750945983676,0.805,2428.8,2428.0,4.11850324]
[1750945983846,0.2056,2428.6,2428.1,4.32395962]
[1750945984174,0.2056,2428.6,2427.7,4.11910651]
[1750945984175,0.805,2428.5,2427.4,4.89467677]
[1750945984476,0.805,2428.5,2427.6,4.1192538]
[1750945984477,1.49226236,2428.4,2427.6,4.1192538]
[1750945984650,1.49226236,2428.4,2427.4,4.89464958]
[1750945984852,1.49226236,2428.4,2427.4,0.7751]
[1750945985173,1.49226236,2428.4,2427.6,4.11928567]
[1750945985336,0.805,2428.5,2428.1,4.11835412]
[1750945985543,0.805,2429.2,2428.3,4.11806559]
[1750945985739,5.09075123,2429.1,2427.9,6.27375105]
[1750945985960,11.77887155,2429.0,2427.9,6.27375105]
[1750945986155,12.56344667,2428.9,2427.9,3.93518272]
[1750945986369,10.97387155,2428.8,2428.2,4.11824353]
[1750945986574,0.805,2429.0,2428.3,4.11802338]
[1750945986744,0.805,2429.0,2427.9,8.0539494]
[1750945986943,0.805,2429.0,2428.0,4.11851024]
[1750945987184,0.805,2428.8,2427.7,2.155]